Cogmind - Beta 13 @@@ ROGUE MODE // 2024.05.02 @ 02:35:35 Player: Sinner6 Result: Destroyed by Y-45 Defender with Heavy Assault Rifle Performance ------------- Evolutions (1) 500 Regions Visited (2) 400 Robots Destroyed (38) 190 Value Destroyed (871) 871 Prototype IDs (0) 0 Alien Tech Used (0) 0 Bonus (0) 0 TOTAL SCORE: 1961 Bonus ------- None Cogmind --------- Core Integrity 0/400 Matter 300/300 Energy 100/100 System Corruption 12% Temperature Cool (9) Movement Core (350) Ox6 Location -9/Materials Parts ------- > --- POWER (1) -------- (None) > --- PROPULSION (3) --- (None) > --- UTILITY (3) ------ Large Storage Unit Structural Scanner > --- WEAPON (2) ------- (None) > --- INVENTORY (15) --- Ion Engine Ion Engine Light Treads Heat Sink Improved Heat Sink Cooling System Medium Storage Unit Medium Battery (150) Medium Matter Pod (100) Sensor Array Signal Interpreter Power Shielding Small Laser Grenade Launcher Peak State ------------ > --- POWER ------------ Improved Ion Engine > --- PROPULSION ------- Light Treads Light Treads Aluminum Leg > --- UTILITY ---------- Large Storage Unit ECM Suite Power Shielding > --- WEAPON ----------- Small Laser Assault Rifle > --- INVENTORY -------- Ion Engine Ion Engine Aluminum Leg Improved Heat Sink Medium Storage Unit Medium Battery Medium Matter Pod Sensor Array Signal Interpreter Grenade Launcher Mining Laser [Rating: 11] Favorites ----------- Power Ion Engine Engine Ion Engine Propulsion Aluminum Leg Treads Light Treads Leg Aluminum Leg Utility Medium Storage Unit Device ECM Suite Storage Medium Storage Unit Processor Signal Interpreter Protection Power Shielding Weapon Small Laser Energy Gun Small Laser Ballistic Gun Assault Rifle Launcher Grenade Launcher Special Weapon Mining Laser Build | -11 -10 -9 ------- Run | Yrd Mat Mat Slots Evolved 2 | . . 2 Power . | . . . Propulsion 1 | . . 1 Utility 1 | . . 1 Weapon . | . . . Parts Attached 48 | 7 21 20 Power 7 | 1 4 2 Engine 7 | 1 4 2 Core . | . . . Reactor . | . . . Propulsion 15 | 2 4 9 Treads 5 | 2 . 3 Leg 10 | . 4 6 Wheel . | . . . Hover . | . . . Flight . | . . . Utility 12 | 2 6 4 Device 5 | 1 1 3 Storage 4 | 1 2 1 Processor 1 | . 1 . Hackware . | . . . Protection 2 | . 2 . Artifact . | . . . Weapon 14 | 2 7 5 Energy Gun 6 | . 3 3 Energy Cannon . | . . . Ballistic Gun 4 | 2 2 . Ballistic Cannon . | . . . Launcher 3 | . 2 1 Special Weapon 1 | . . 1 Impact Weapon . | . . . Slashing Weapon . | . . . Piercing Weapon . | . . . Special Melee Weapon . | . . . Unidentified Prototypes . | . . . Parts Lost 17 | . 4 13 Power 3 | . 1 2 Propulsion 5 | . 1 4 Utility 3 | . 1 2 Weapon 6 | . 1 5 Highest Loss Streak 6 | . 3 6 To Critical Strikes . | . . . Average Slot Usage (%) 94 | . 99 85 Engine 12 | . 13 10 Treads 8 | . 10 4 Leg 18 | . 17 22 Device 6 | . 3 12 Storage 13 | . 14 11 Processor 3 | . 5 . Protection 4 | . 4 4 Energy Gun 9 | . 5 16 Ballistic Gun 14 | . 19 3 Launcher 2 | . 3 . Naked Turns . | . . . Heaviest Build 34 | 14 29 34 Greatest Support 40 | 40 40 40 Greatest Overweight (x) 10 | . . 10 Average Overweight (x) . | . . 1 Largest Inventory Capacity 15 | 8 15 15 Average Capacity 11 | 7 9 14 Most Carried 15 | 5 10 15 Average Carried 8 | 3 8 11 Final Capacity 15 | 8 10 15 Final Carried 14 | 4 10 14 Class Distribution -------------------- 61% | Mutant 38% | Scavenger-Mutant Dominant Class ---------------- Mutant | -10/Materials Scavenger-Mutant | -9/Materials Resources | -11 -10 -9 ----------- Run | Yrd Mat Mat Matter Collected 985 | 235 440 310 Remotely . | . . . Salvage Created 1022 | 19 490 513 Parts 81 | 3 42 36 Haulers Intercepted 1 | . 1 . Recyclers Shooed . | . . . Parts Field Recycled . | . . . Retrieved Matter . | . . . Parts Self-Destructed . | . . . Prevented . | . . . Kills | -11 -10 -9 ------- Run | Yrd Mat Mat Combat Hostiles Destroyed 27 | . 16 11 Melee 1 | . 1 . Guns 21 | . 11 10 AOE 5 | . 4 1 Classes Destroyed 8 | 1 5 2 Worker 5 | . 1 4 Tunneler 1 | 1 . . Hauler 1 | . 1 . Watcher 4 | . 2 2 Swarmer 8 | . 6 2 Grunt 16 | . 10 6 Brawler 1 | . . 1 Sentry 2 | . . 2 Best Kill Streak 6 | 1 6 5 Combat Bots Only 4 | . 4 3 Max Kills in Single Turn 4 | 1 4 3 Gunslinging . | . . . Exploded 2 | . 2 1 Melee 1 | . 1 . Uniques/NPCs Destroyed . | . . . Combat | -11 -10 -9 -------- Run | Yrd Mat Mat Hostile Shots Fired 304 | . 133 171 Missed 85 | . 38 47 Damage Taken 2771 | . 1166 1605 Core 645 | . 234 411 Absorbed by Shields . | . . . Redirected to Shielding 69 | . 54 15 Core Remaining (%) 53 | 100 6 . Volleys Fired 131 | 1 74 56 Largest 2 | 2 2 2 Hottest 140 | 40 60 140 Shots Fired 242 | 2 135 105 Gun 232 | 2 130 100 Cannon . | . . . Launcher 6 | . 5 1 Special 4 | . . 4 Kinetic 132 | 2 111 19 Thermal 104 | . 19 85 Explosive 6 | . 5 1 Electromagnetic . | . . . Robot Hit Streak 12 | 1 12 11 Robot Miss Streak 5 | . 5 4 Penetration Max . | . . . Secondary Targets . | . . . Shots Hit Robots 152 | 1 88 63 Core Hits 67 | 2 38 27 Critical Kills . | . . . Critical Parts Destroyed . | . . . Critical Strikes . | . . . Melee Attacks . | . . . Impact . | . . . Slashing . | . . . Piercing . | . . . Sneak Attacks . | . . . Combat Hostiles . | . . . Follow-up Attacks . | . . . Damage Inflicted 2391 | 37 1396 958 Guns 1604 | 10 871 723 Cannons . | . . . Explosions 650 | . 474 176 Melee . | . . . Ramming 89 | 27 51 11 Kinetic 862 | 10 719 133 Thermal 790 | . 152 638 Explosive 650 | . 474 176 Electromagnetic . | . . . Impact . | . . . Slashing . | . . . Piercing . | . . . Highest Corruption 12 | . 1 12 Average Corruption 3 | . 1 11 Corruption Purged . | . . . Corruption Blocked . | . . . Effects 16 | . 4 12 Message Errors 1 | . 1 . Matter Fused 4 | . 1 3 Heat Flow Errors 1 | . . 1 Energy Discharges 3 | . 1 2 Parts Rejected 1 | . . 1 Data Loss (minor) 1 | . 1 . Misfires 1 | . . 1 Misdirections 1 | . . 1 Weapon Failures 3 | . . 3 Overload Shots . | . . . Overflow Damage 17 | . 16 1 Projectiles . | . . . Explosions 17 | . 16 1 Melee . | . . . Knockbacks . | . . . Impact . | . . . Kinetic . | . . . Secondary . | . . . Self-Inflicted Damage 152 | . 113 39 Shots 6 | . 5 1 Rammed 16 | 11 5 . Targets Rammed 23 | 11 9 3 Kicked 7 | . 4 3 Crushed . | . . . Highest Temperature 228 | . 54 228 Average Temperature 46 | . 21 62 Received Heat Transfer 1065 | . 510 555 Siege Activations . | . . . Robots Corrupted . | . . . Combat Hostiles . | . . . Parts Fried . | . . . Impact Corruptions . | . . . Robots Melted . | . . . Combat Hostiles . | . . . Parts Melted 3 | . 1 2 Heat Transferred 1775 | . 350 1425 Parts Sabotaged . | . . . Parts Stolen . | . . . Parts Stripped . | . . . Power Chain Reactions . | . . . Alert | -11 -10 -9 ------- Run | Yrd Mat Mat Peak Influence 282 | 5 220 282 Initial 73 | . 3 73 Average 143 | 3 135 192 Maximum Alert Level 1 | . 1 1 Low Security (%) 71 | 100 79 48 Level 1 28 | . 20 51 Level 2 . | . . . Level 3 . | . . . Level 4 . | . . . Level 5 . | . . . High Security . | . . . Max Security . | . . . Squads Dispatched 7 | . 5 2 Investigation 4 | . 3 1 Extermination . | . . . Reinforcement 3 | . 2 1 Assault . | . . . Garrison . | . . . Intercept . | . . . Searches Triggered . | . . . Construction Impeded . | . . . Haulers Reinforced . | . . . Active Scanning Responses . | . . . Cargo Convoy Interrupts . | . . . Stealth | -11 -10 -9 --------- Run | Yrd Mat Mat Distress Signals 2 | . 2 . Communications Jammed . | . . . Distress Signals . | . . . Times Spotted 56 | . 25 31 Peak Tracking Total 8 | . 6 8 Tactical Retreats 6 | . 1 5 Traps | -11 -10 -9 ------- Run | Yrd Mat Mat Traps Triggered 2 | . 2 . Indirectly . | . . . Trap Hack Attempts . | . . . Triggered . | . . . Disarmed . | . . . Reprogrammed . | . . . Reused . | . . . Traps Extracted . | . . . Installed . | . . . Triggered . | . . . Machines | -11 -10 -9 ---------- Run | Yrd Mat Mat Machines Disabled 3 | . 3 . Max in Single Turn 1 | . 1 . Machines Repaired . | . . . Machines Dismantled . | . . . Machines Sabotaged . | . . . Overloaded Fab Kills . | . . . Hacking | -11 -10 -9 --------- Run | Yrd Mat Mat Machines Accessed 6 | . 4 2 Terminals 4 | . 3 1 Fabricators . | . . . Repair Stations . | . . . Recycling Units 2 | . 1 1 Scanalyzers . | . . . Garrison Access . | . . . Total Hacks 21 | . 15 6 Successful 13 | . 10 3 Failed 8 | . 5 3 Catastrophic 2 | . 1 1 Database Lockouts . | . . . Manual 8 | . 4 4 Terminals 12 | . 8 4 Fabricators . | . . . Repair Stations . | . . . Recycling Units 9 | . 7 2 Scanalyzers . | . . . Garrison Access . | . . . Terminal Hacks 1 | . 1 . Maintenance Status 1 | . 1 . Fabricator Hacks . | . . . Repair Station Hacks . | . . . Recycling Unit Hacks 9 | . 7 2 Recycle Component 2 | . 2 . Process 2 | . 2 . Report Inventory 1 | . . 1 Retrieve Matter 3 | . 2 1 Retrieve Components 1 | . 1 . Scanalyzer . | . . . Garrison Access Hacks . | . . . Unauthorized Hacks 3 | . 2 1 Terminals 3 | . 2 1 Botnet 3 | . 2 1 Fabricators . | . . . Repair Stations . | . . . Recycling Units . | . . . Scanalyzers . | . . . Garrison Access . | . . . Data Cores Recovered . | . . . Used . | . . . Hacking Detections 5 | . 4 1 Full Trace Events 3 | . 2 1 Feedback Events . | . . . Feedback Blocked . | . . . Robot Schematics Acquired . | . . . Robots Built . | . . . Authchips . | . . . Time . | . . . Total Robot Build Rating . | . . . Part Schematics Acquired . | . . . Parts Built . | . . . Authchips . | . . . Time . | . . . Total Part Build Rating . | . . . Parts Repaired . | . . . Time . | . . . Parts Recycled 2 | . 2 . Recycled Matter 6 | . 6 . Retrieved Matter 93 | . 6 87 Retrieved Components 4 | . 4 . Parts Scanalyzed . | . . . Part Schematics Acquired . | . . . Parts Damaged . | . . . Bothacking | -11 -10 -9 ------------ Run | Yrd Mat Mat Used RIF Installer . | . . . Robots Hacked . | . . . Non-combat . | . . . Combat . | . . . Robot Hacks Applied . | . . . Relay Couplers Released . | . . . Fabnet Peak Effective % . | . . . Robots Rewired . | . . . Allies Hacked . | . . . Hacks Repelled . | . . . Allies | -11 -10 -9 -------- Run | Yrd Mat Mat Total Allies . | . . . Largest Group . | . . . Highest-Rated Group . | . . . Highest-Rated Ally . | . . . Total Orders . | . . . Ally Attacks . | . . . Total Damage . | . . . Kills . | . . . Allies Corrupted . | . . . Allies Melted . | . . . Intel | -11 -10 -9 ------- Run | Yrd Mat Mat Robot Analysis Total . | . . . Derelict Logs Recovered . | . . . Drone Launches . | . . . Drone Recoveries . | . . . Exploration | -11 -10 -9 ------------- Run | Yrd Mat Mat Turns Passed 2390 | 165 1489 736 Spaces Moved 1221 | 84 898 239 Core 9 | 3 . 6 Treads 390 | 81 258 51 Legs 822 | . 640 182 Wheels . | . . . Hover . | . . . Flight . | . . . Fastest Speed 50 | 50 120 120 Average Speed 146 | 156 131 201 Slowest Speed 550 | 160 160 550 Overloaded Moves . | . . . Propulsion Burnouts . | . . . Robots Hopped . | . . . Cave-ins Triggered . | . . . Exploration Rate (%) 37 | 5 92 16 Regions Visited 2 Branch Regions . Pre-discovered Areas . | . . . Known Exits Taken . | . . . Unknown Exits Taken 2 | 1 1 . Scrap Searched . | . . . Spaces Dug 1 | . . 1 Terrain Destroyed 41 | . 35 6 Melee . | . . . Projectile 1 | . . 1 AOE 40 | . 35 5 Terrain Rammed . | . . . Walls Destroyed . | . . . Machines Disabled . | . . . Actions | -11 -10 -9 --------- Run | Yrd Mat Mat Total 1570 | 107 1085 378 Wait 85 | . 48 37 Move 1219 | 83 897 239 Hop . | . . . Pick Up 34 | 5 17 12 Fast Attach 13 | 6 2 5 Attach 16 | 1 7 8 Detach 9 | . 5 4 Swap 19 | . 12 7 Drop 21 | . 14 7 Fire 131 | 1 74 56 Melee . | . . . Ram . | . . . Kick 7 | . 4 3 Crush 16 | 11 5 . Escape Stasis . | . . . Rewire . | . . . Trap . | . . . Miscellaneous . | . . . Route ------- -11/Scrapyard -10/Materials (discovered 4 exits: *Mat x3 / [*Min]) -9/Materials History --------- Turn | Location | Event 8 | -11/Scrapyard | Discovered new exit (range 15) 166 | -11/Scrapyard | Entered Materials 308 | -10/Materials | Build established: Mutant 578 | -10/Materials | Discovered new exit (range 6) 730 | -10/Materials | Core integrity fell below 50% 772 | -10/Materials | Lost 3 parts (1p1n1w) 1260 | -10/Materials | Discovered new exit (range 10) 1411 | -10/Materials | Core integrity fell below 20% 1534 | -10/Materials | Discovered new exit (range 8) 1625 | -10/Materials | Discovered new exit (range 7) 1655 | -10/Materials | Entered another Materials area 1655 | -9/Materials | Evolved 2 slots: Propulsion x1, Utility x1 1725 | -9/Materials | Build established: Scavenger-Mutant 1963 | -9/Materials | Lost 3 parts (1n2w) 2189 | -9/Materials | System corruption reached 10% 2219 | -9/Materials | Lost 3 parts (1p2u) 2358 | -9/Materials | Core integrity fell below 50% 2383 | -9/Materials | Core integrity fell below 20% 2391 | -9/Materials | Destroyed by Y-45 Defender with Heavy Assault Rifle Last Messages --------------- 02319_ Aluminum Leg destroyed. 02322_ System corrupted: Sml. Laser rejected. 02325_ U-05 Engineer destroyed. 02326_ Acquired Sml. Laser. 02334_ Aluminum Leg destroyed. 02335_ Acquired Structural Scanner. 02337_ Acquired 15 matter. 02347_ System corrupted: Energy discharge (-78). 02355_ Aluminum Leg destroyed. 02355_ System corrupted: Sml. Laser failed to cycle. 02358_ Sml. Laser destroyed. 02358_ Critical hit (Burn: +37). 02360_ Heat Sink melted. 02360_ Y-45 Defender destroyed. 02361_ Sml. Laser destroyed. 02366_ System corrupted: Matter fused (-5). 02377_ K-01 Serf collects debris. 02385_ Rnf. Ion Engine destroyed. 02386_ K-01 Serf collects debris. Map ----- +----------------------------------------------------+ | | | | | | | ????????????????????????????????????????????? | | ????????????????????????????????????????????? | | ????????????????????????????????????????????? | | ????????????????????????????????????????????? | | ????????????????????????????????????????????? | | ????????????????????????????????????????????? | | ????????????????????????????????????????????? | | ??????????????????# ????????????????????? | | ??????????????????####+#????????????????????? | | ?????????????????? # ????????????????????? | | ?????????????????? # ????????????????????? | | ?????????????????? # ##????????????????????? | | ?????????????????? # # ????????????????????? | | ?????????????????? + # ????????????????????? | | ##???????????????? # #"????????????????????? | | !##??????????????? # #"????????????????????? | | !#??????????????? # #"????????????????????? | | !#???????????????## #"???????????? ###????? | | !#????????######### # ####?? ###????? | | !#????????######### ###+####### ##????? | | !##????????## =k| ##????? | | #############! ! != Y ##????? | | """ """ + !%g *@[ ##????? | | """ """%######+##########/## ## ##????? | | """ """%## ! ! ## # ? ###???###????? | | %%*## #???? # ? ##???????????? | | =! ## """ """ #???** # ???????????????? | | ==## """ """ #???** # ???????????????? | | ########## """ """ #?? ** # ???????????????? | | ##??????# """ """ #?? # ???????????????? | | ##??????# """ """ #? # ???????????????? | | ##??????# ? ## """ + ???????????????? | | ###############+??## """ # ???????????????? | | # #? ??## """ ##???????????????? | | # """ """ ""#? ??## ??? # ???????????????? | | + """ """ %Y"#????## ???? # ???????????????? | | # """ """ ""#????## ??? #????????????????? | | # #??????????###????????????????? | | ##############??????????###????????????????? | | ######??????????????????????????????????????? | | #??????????????????????????????????????? | | """ #??????????????????????????????????????? | | """ #??????????????????????????????????????? | | """ #??????????????????????????????????????? | | #??????????????????????????????????????? | | """ #??????????????????????????????????????? | | """ #??????????????????????????????????????? | +----------------------------------------------------+ Best States ------------- Heat Dissipation 39 Energy Generation 12 Energy Capacity 265 Matter Stores 300 Matter Capacity 300 Sight Range 16 Terrain Scan Range 16 Terrain Scan Density 10 ECM Strength 1 Additional Mass Support 6 Power Shielding 33 Propulsion Shielding 33 Evasion (%) 55 Recoil Reduction 2 Item Schematics ----------------- None Robot Schematics ------------------ None Fabricated ------------ Nothing Alien Tech Used ----------------- None Achievements -------------- Close Call Fist Fight Challenges ------------ None Game ------ Seed DispersionWardroneInverter Manual? 0 Play Time 00:50:31 Cumulative 39.3 hours Start 2024.05.02 @ 01:44:31 End 2024.05.02 @ 02:35:35 Sessions 1 Manual Loads 0 Difficulty Rogue Special Mode None Game No. 6 Rogue 2 Adventurer 4 Explorer 0 Win Type - Total 0 Types 0/0/0/0/0/0/0/0/0 Lore% 16 Gallery% 23 Achievement% 19 Wizard Run 0 Options --------- Layout 1 ASCII 0 Keyboard 0 Movement Numpad Keybinds 0 Fullscreen 1 Font 24/Terminus Map View 50x35 Zoom Use 0% Tactical HUD 1 Map Filters NONE Filters NONE Steam SD RUN: 37c05e11-447e-45dc-a355-a501130338ce